fUSD/lending_fUSD_20240915
["ID","MTS","AMOUNT","RATE_DAILY","PERIOD"]
[338184214,1726377044974,-500.0,0.00012999,2]
[338184215,1726377044984,-172.1038344,0.00012999,2]
[338184216,1726377044994,-1111.28,0.00012999,2]
[338184217,1726377045003,-500.0,0.00012999,2]
[338184218,1726377045012,-808.82,0.00012999,2]
[338184219,1726377045022,-500.0,0.00012999,2]
[338184220,1726377045031,-500.0,0.00012999,2]
[338184221,1726377045041,-500.0,0.00012999,2]
[338184222,1726377045050,-683.63,0.00012999,2]
[338184223,1726377045060,-2648.63,0.00012999,2]
[338184224,1726377045069,-375.42700133,0.00012999,2]
[338184225,1726377045079,-500.0,0.00012999,2]
[338184226,1726377045089,-500.0,0.00012999,2]
[338184227,1726377045099,-910.07,0.00012999,2]
[338184228,1726377045108,-500.0,0.00012999,2]
[338184229,1726377045118,-701.95,0.00012999,2]
[338184230,1726377045128,-803.77,0.00012999,2]
[338184231,1726377045138,-152.43863738,0.00012999,2]
[338184232,1726377045147,-500.0,0.00012999,2]
[338184233,1726377045157,-500.0,0.00012999,2]
[338184234,1726377045166,-2221.97,0.00012999,2]
[338184235,1726377045175,-720.86,0.00012999,2]
[338184236,1726377045185,-890.24,0.00012999,2]
[338184237,1726377045194,-500.0,0.00012999,2]
[338184238,1726377045203,-500.0,0.00012999,2]
[338184239,1726377045212,-500.0,0.00012999,2]
[338184240,1726377045222,-1449.42,0.00012999,2]
[338184241,1726377045231,-500.0,0.00012999,2]
[338184242,1726377045240,-500.0,0.00012999,2]
[338184243,1726377045250,-500.0,0.00012999,2]
[338184244,1726377045259,-500.0,0.00012999,2]
[338184245,1726377045268,-769.04,0.00012999,2]
[338184246,1726377045277,-500.0,0.00012999,2]
[338184247,1726377045286,-500.0,0.00012999,2]
[338184248,1726377045295,-500.0,0.00012999,2]
[338184249,1726377045304,-545.77,0.00012999,2]
[338184250,1726377045313,-1193.61,0.00012999,2]
[338184251,1726377045323,-1230.37,0.00012999,2]
[338184252,1726377045334,-696.99,0.00012999,2]
[338184253,1726377045344,-500.0,0.00012999,2]
[338184254,1726377045353,-500.0,0.00012999,2]
[338184255,1726377045362,-519.54,0.00012999,2]
[338184256,1726377045371,-500.0,0.00012999,2]
[338184257,1726377045381,-500.0,0.00012999,2]
[338184258,1726377045391,-500.0,0.00012999,2]
[338184259,1726377045402,-500.0,0.00012999,2]
[338184260,1726377045412,-1445.55,0.00012999,2]
[338184261,1726377045423,-500.0,0.00012999,2]
[338184262,1726377045432,-500.0,0.00012999,2]
[338184263,1726377045443,-500.0,0.00012999,2]
[338184264,1726377045452,-500.0,0.00012999,2]
[338184265,1726377045464,-500.0,0.00012999,2]
[338184266,1726377045473,-500.0,0.00012999,2]
[338184267,1726377045482,-500.0,0.00012999,2]
[338184268,1726377045492,-500.0,0.00012999,2]
[338184269,1726377045501,-500.0,0.00012999,2]
[338184270,1726377045510,-500.0,0.00012999,2]
[338184271,1726377045519,-500.0,0.00012999,2]
[338184272,1726377045528,-500.0,0.00012999,2]
[338184273,1726377045537,-500.0,0.00012999,2]
[338184274,1726377045547,-1592.18,0.00012999,2]
[338184275,1726377045555,-500.0,0.00012999,2]
[338184276,1726377045564,-500.0,0.00012999,2]
[338184277,1726377045573,-500.0,0.00012999,2]
[338184278,1726377045583,-331.80425063,0.00012999,2]
[338184279,1726377045592,-500.0,0.00012999,2]
[338184280,1726377045601,-500.0,0.00012999,2]
[338184281,1726377045610,-500.0,0.00012999,2]
[338184282,1726377045619,-500.0,0.00012999,2]
[338184283,1726377045628,-500.0,0.00012999,2]
[338184284,1726377045638,-1125.03,0.00012999,2]
[338184285,1726377045647,-500.0,0.00012999,2]
[338184286,1726377045655,-2340.38,0.00012999,2]
[338184287,1726377045664,-500.0,0.00012999,2]
[338184288,1726377045673,-500.0,0.00012999,2]
[338184289,1726377045682,-581.49,0.00012999,2]
[338184290,1726377045691,-500.0,0.00012999,2]
[338184291,1726377045699,-500.0,0.00012999,2]
[338184292,1726377045709,-500.0,0.00012999,2]
[338184293,1726377045718,-500.0,0.00012999,2]
[338184294,1726377045727,-500.0,0.00012999,2]
[338184295,1726377045735,-500.0,0.00012999,2]
[338184296,1726377045745,-1523.66,0.00012999,2]
[338184297,1726377045757,-489.62642692,0.00012999,2]
[338184298,1726377045766,-1586.4,0.00012999,2]
[338184299,1726377045775,-865.86,0.00012999,2]
[338184300,1726377045784,-500.0,0.00012999,2]
[338184301,1726377045794,-500.0,0.00012999,2]
[338184302,1726377045803,-624.66,0.00012999,2]
[338184303,1726377045812,-500.0,0.00012999,2]
[338184304,1726377045821,-500.0,0.00012999,2]
[338184305,1726377045830,-500.0,0.00012999,2]
[338184306,1726377045839,-500.0,0.00012999,2]
[338184307,1726377045848,-3611.03,0.00012999,2]
[338184308,1726377045857,-500.0,0.00012999,2]
[338184309,1726377045871,-500.0,0.00012999,2]
[338184310,1726377045880,-768.3,0.00012999,2]
[338184311,1726377045888,-500.0,0.00012999,2]
[338184312,1726377045897,-1460.84,0.00012999,2]
[338184313,1726377045907,-806.82,0.00012999,2]
[338184314,1726377045918,-500.0,0.00012999,2]
[338184315,1726377045930,-500.0,0.00012999,2]
[338184316,1726377045942,-500.40603295,0.00012999,2]
[338184317,1726377045953,-500.0,0.00012999,2]
[338184318,1726377045964,-500.0,0.00012999,2]
[338184319,1726377045974,-500.0,0.00012999,2]
[338184320,1726377045983,-1397.52,0.00012999,2]
[338184321,1726377045993,-500.0,0.00012999,2]
[338184322,1726377046003,-500.0,0.00012999,2]
[338184323,1726377046012,-500.0,0.00012999,2]
[338184324,1726377046022,-2374.62,0.00012999,2]
[338184325,1726377046031,-500.0,0.00012999,2]
[338184326,1726377046040,-876.58,0.00012999,2]
[338184327,1726377046049,-500.0,0.00012999,2]
[338184328,1726377046058,-500.0,0.00012999,2]
[338184329,1726377046067,-500.0,0.00012999,2]
[338184330,1726377046076,-2739.13,0.00012999,2]
[338184331,1726377046086,-500.0,0.00012999,2]
[338184332,1726377046095,-663.6,0.00012999,2]
[338184333,1726377046104,-5157.25,0.00012999,2]
[338184334,1726377046113,-500.0,0.00012999,2]
[338184335,1726377046122,-1479.14,0.00012999,2]
[338184336,1726377046131,-500.0,0.00012999,2]
[338184337,1726377046140,-1033.15,0.00012999,2]
[338184339,1726377046150,-186.99199888,0.00012999,2]
[338184340,1726377046159,-500.0,0.00012999,2]
[338184342,1726377046168,-500.0,0.00012999,2]
[338184344,1726377046177,-500.0,0.00012999,2]
[338184345,1726377046186,-1301.68,0.00012999,2]
[338184346,1726377046195,-1029.78,0.00012999,2]
[338184347,1726377046205,-1230.99,0.00012999,2]
[338184348,1726377046215,-2246.08,0.00012999,2]
[338184349,1726377046224,-500.0,0.00012999,2]
[338184350,1726377046234,-500.0,0.00012999,2]
[338184351,1726377046245,-3226.67,0.00012999,2]
[338184352,1726377046254,-510.17048433,0.00012999,2]
[338184353,1726377046263,-500.0,0.00012999,2]
[338184354,1726377046273,-187.11137362,0.00012999,2]
[338184355,1726377046283,-647.06,0.00012999,2]
[338184356,1726377046293,-500.0,0.00012999,2]
[338184357,1726377046304,-500.0,0.00012999,2]
[338184358,1726377046313,-709.44,0.00012999,2]
[338184360,1726377046323,-557.31,0.00012999,2]
[338184362,1726377046334,-6394.27,0.00012999,2]
[338184363,1726377046343,-614.16,0.00012999,2]
[338184364,1726377046354,-1179.52,0.00012999,2]
[338184365,1726377046364,-970.01,0.00012999,2]
[338184366,1726377046375,-1263.65,0.00012999,2]
[338184367,1726377046384,-500.0,0.00012999,2]
[338184368,1726377046394,-500.0,0.00012999,2]
[338184369,1726377046404,-500.0,0.00012999,2]
[338184370,1726377046414,-500.0,0.00012999,2]
[338184371,1726377046427,-1217.16,0.00012999,2]
[338184372,1726377046438,-1713.22,0.00012999,2]
[338184373,1726377046448,-500.0,0.00012999,2]
[338184374,1726377046459,-3854.41,0.00012999,2]
[338184375,1726377046468,-500.0,0.00012999,2]
[338184376,1726377046477,-500.0,0.00012999,2]
[338184377,1726377046486,-717.55,0.00012999,2]
[338184378,1726377046497,-703.09,0.00012999,2]
[338184379,1726377046513,-3216.7,0.00012999,2]
[338184380,1726377046523,-1369.78,0.00012999,2]
[338184381,1726377046531,-500.0,0.00012999,2]
[338184382,1726377046540,-953.17,0.00012999,2]
[338184383,1726377046551,-1305.49,0.00012999,2]
[338184384,1726377046560,-500.0,0.00012999,2]
[338184385,1726377046569,-500.0,0.00012999,2]
[338184386,1726377046579,-500.0,0.00012999,2]
[338184387,1726377046587,-500.0,0.00012999,2]
[338184388,1726377046597,-500.0,0.00012999,2]
[338184389,1726377046606,-2180.24,0.00012999,2]
[338184390,1726377046615,-500.0,0.00012999,2]
[338184391,1726377046624,-1350.29,0.00012999,2]
[338184392,1726377046634,-747.33,0.00012999,2]
[338184393,1726377046644,-3464.33,0.00012999,2]
[338184394,1726377046653,-500.0,0.00012999,2]
[338184395,1726377046662,-747.53,0.00012999,2]
[338184396,1726377046672,-500.0,0.00012999,2]
[338184397,1726377046681,-760.77,0.00012999,2]
[338184398,1726377046690,-2338.73,0.00012999,2]
[338184399,1726377046699,-4664.26,0.00012999,2]
[338184400,1726377046708,-1779.46,0.00012999,2]
[338184401,1726377046717,-500.0,0.00012999,2]
[338184402,1726377046726,-500.0,0.00012999,2]
[338184403,1726377046735,-547.36,0.00012999,2]
[338184404,1726377046934,-15125.88,0.00012999,2]
[338184405,1726377046944,-500.0,0.00012999,2]
[338184406,1726377046954,-500.0,0.00012999,2]
[338184407,1726377046963,-500.0,0.00012999,2]
[338184408,1726377046972,-500.0,0.00012999,2]
[338184409,1726377046982,-300.0,0.00012999,2]
[338184410,1726377046991,-1818.16,0.00012999,2]
[338184411,1726377047006,-500.0,0.00012999,2]
[338184412,1726377047015,-1176.59,0.00012999,2]
[338184413,1726377047024,-500.0,0.00012999,2]
[338184414,1726377047034,-500.0,0.00012999,2]
[338184415,1726377047043,-3021.14,0.00012999,2]
[338184416,1726377047052,-500.0,0.00012999,2]
[338184417,1726377047061,-500.0,0.00012999,2]
[338184418,1726377047071,-500.0,0.00012999,2]
[338184419,1726377047080,-500.0,0.00012999,2]
[338184420,1726377047090,-500.0,0.00012999,2]
[338184421,1726377047100,-1501.83,0.00012999,2]
[338184422,1726377047109,-1179.79,0.00012999,2]
[338184423,1726377047118,-500.0,0.00012999,2]
[338184424,1726377047127,-586.37,0.00012999,2]
[338184425,1726377047137,-500.0,0.00012999,2]
[338184426,1726377047147,-500.0,0.00012999,2]
[338184427,1726377047157,-947.7,0.00012999,2]
[338184428,1726377047167,-1265.83,0.00012999,2]
[338184429,1726377047176,-500.0,0.00012999,2]
[338184430,1726377047187,-500.0,0.00012999,2]
[338184431,1726377047196,-521.55594134,0.00012999,2]
[338184432,1726377047206,-1407.39,0.00012999,2]
[338184433,1726377047215,-507.51,0.00012999,2]
[338184434,1726377047225,-2134.34,0.00012999,2]
[338184435,1726377047234,-500.0,0.00012999,2]
[338184436,1726377047244,-766.27,0.00012999,2]
[338184437,1726377047254,-926.68,0.00012999,2]
[338184438,1726377047263,-500.0,0.00012999,2]
[338184439,1726377047272,-500.0,0.00012999,2]
[338184440,1726377047281,-500.0,0.00012999,2]
[338184441,1726377047291,-8414.95,0.00012999,2]
[338184442,1726377047300,-754.66,0.00012999,2]
[338184443,1726377047309,-500.0,0.00012999,2]
[338184444,1726377047319,-1513.81,0.00012999,2]
[338184445,1726377047328,-2122.3,0.00012999,2]
[338184446,1726377047339,-500.0,0.00012999,2]
[338184447,1726377047349,-500.0,0.00012999,2]
[338184448,1726377047358,-2362.18,0.00012999,2]
[338184449,1726377047368,-500.0,0.00012999,2]
[338184450,1726377047378,-500.0,0.00012999,2]
[338184451,1726377047389,-862.55,0.00012999,2]
[338184452,1726377047399,-687.76,0.00012999,2]
[338184453,1726377047408,-500.0,0.00012999,2]
[338184454,1726377047418,-500.0,0.00012999,2]
[338184455,1726377047427,-500.0,0.00012999,2]
[338184456,1726377047438,-500.0,0.00012999,2]
[338184457,1726377047448,-500.0,0.00012999,2]
[338184458,1726377047459,-2705.85,0.00012999,2]
[338184459,1726377047468,-1109.32,0.00012999,2]
[338184460,1726377047477,-912.19,0.00012999,2]
[338184461,1726377047486,-2164.93,0.00012999,2]
[338184462,1726377047496,-500.0,0.00012999,2]
[338184463,1726377047505,-308.69572387,0.00012999,2]
[338184464,1726377047515,-500.0,0.00012999,2]
[338184465,1726377047524,-7004.96,0.00012999,2]
[338184466,1726377047533,-500.0,0.00012999,2]
[338184467,1726377047543,-859.78,0.00012999,2]
[338184468,1726377047552,-859.78,0.00012999,2]
[338184469,1726377047561,-2569.18,0.00012999,2]
[338184470,1726377047570,-308.61213144,0.00012999,2]
[338184471,1726377047579,-20141.95,0.00012999,2]
[338184472,1726377047590,-500.0,0.00012999,2]
[338184473,1726377047599,-500.0,0.00012999,2]
[338184474,1726377047609,-500.0,0.00012999,2]
[338184475,1726377047619,-2595.7,0.00012999,2]
[338184476,1726377047630,-308.50135578,0.00012999,2]
[338184477,1726377047640,-500.0,0.00012999,2]
[338184478,1726377047651,-733.1,0.00012999,2]
[338184479,1726377047661,-763.08,0.00012999,2]
[338184480,1726377047671,-625.27040132,0.00012999,2]
[338184481,1726377047681,-3449.32,0.00012999,2]
[338184482,1726377047691,-500.0,0.00012999,2]
[338184483,1726377047701,-202.55012341,0.00012999,2]
[338184484,1726377047714,-2720.75,0.00012999,2]
[338184485,1726377047724,-1883.18,0.00012999,2]
[338184486,1726377047734,-857.47,0.00012999,2]
[338184487,1726377047744,-308.60929543,0.00012999,2]
[338184488,1726377047754,-500.0,0.00012999,2]
[338184489,1726377047763,-500.0,0.00012999,2]
[338184490,1726377047772,-500.0,0.00012999,2]
[338184491,1726377047781,-6332.85,0.00012999,2]
[338184492,1726377047790,-500.0,0.00012999,2]
[338184493,1726377047800,-500.0,0.00012999,2]
[338184494,1726377047809,-3008.9,0.00012999,2]
[338184495,1726377047819,-1204.07,0.00012999,2]
[338184496,1726377047828,-500.0,0.00012999,2]
[338184497,1726377047838,-490279.54203935,0.00013,2]
[338184498,1726377047848,-1100.0,0.00013,2]
[338184499,1726377047857,-619.66,0.00013,2]
[338184500,1726377048076,-200.0,0.00013,2]
[338184501,1726377048086,-4478.15941184,0.00013,2]
[338184502,1726377048096,-1809.85461,0.00013,2]
[338184503,1726377048105,-1809.8546,0.00013,2]
[338184504,1726377048115,-1809.85461,0.00013,2]
[338184505,1726377048124,-1809.85461,0.00013,2]
[338184506,1726377048134,-1809.85461,0.00013,2]
[338184507,1726377048143,-1809.85461,0.00013,2]
[338184508,1726377048153,-499.99,0.00013053,2]
[338184509,1726377048163,-3967.22132977,0.00013122,2]
[338184510,1726377048173,-796.0,0.00013131,2]
[338184511,1726377048182,-201.0,0.0001317,2]
[338184512,1726377048192,-1506.78,0.00013272,2]
[338184513,1726377048202,-2055.25,0.00013272,2]
[338184514,1726377048212,-1207.94,0.00013272,2]
[338184515,1726377048221,-500.0,0.00013272,2]
[338184516,1726377048230,-688.26,0.00013272,2]
[338184517,1726377048240,-2231.89,0.00013272,2]
[338184518,1726377048250,-1739.09,0.00013272,2]
[338184519,1726377048260,-1155.38,0.00013272,2]
[338184520,1726377048269,-1566.97,0.00013272,2]
[338184521,1726377048279,-5591.24,0.00013272,2]
[338184522,1726377048288,-2367.29,0.00013272,2]
[338184523,1726377048298,-500.0,0.00013272,2]
[338184524,1726377048307,-1586.01,0.00013272,2]
[338184525,1726377048316,-1859.99,0.00013272,2]
[338184526,1726377048326,-500.0,0.00013272,2]
[338184527,1726377048336,-1561.5,0.00013272,2]
[338184528,1726377048345,-92284.33388878,0.00013272,2]
[338184529,1726377048355,-831.08,0.00013272,2]
[338184530,1726377048364,-856.86,0.00013272,2]
[338184531,1726377048373,-1788.5,0.00013272,2]
[338184532,1726377048382,-2802.21,0.00013272,2]
[338184533,1726377048392,-1754.87,0.00013272,2]
[338184534,1726377048402,-500.0,0.00013272,2]
[338184535,1726377048411,-1204.93,0.00013272,2]
[338184536,1726377048421,-500.0,0.00013272,2]
[338184537,1726377048431,-801.83,0.00013272,2]
[338184538,1726377048440,-1882.05,0.00013272,2]
[338184539,1726377048449,-500.0,0.00013272,2]
[338184540,1726377048459,-500.0,0.00013273,2]
[338184541,1726377048468,-145943.3974063,0.00013273,2]
[338184542,1726377048478,-654.58,0.00013273,2]
[338184543,1726377048487,-531.07,0.00013273,2]
[338184544,1726377048497,-2075.94,0.00013273,2]
[338184545,1726377048506,-500.0,0.00013273,2]
[338184546,1726377048516,-1153.42,0.00013273,2]
[338184547,1726377048525,-500.0,0.00013273,2]
[338184548,1726377048534,-866.28,0.00013273,2]
[338184549,1726377048543,-767.85,0.00013273,2]
[338184550,1726377048553,-500.0,0.00013273,2]
[338184551,1726377048562,-500.0,0.00013273,2]
[338184552,1726377048572,-585.42,0.00013273,2]
[338184553,1726377048581,-2695.21,0.00013273,2]
[338184554,1726377048591,-500.0,0.00013273,2]
[338184555,1726377048600,-2003.14,0.00013273,2]
[338184556,1726377048609,-1733.71,0.00013273,2]
[338184557,1726377048619,-500.0,0.00013273,2]
[338184558,1726377048628,-1310.88,0.00013273,2]
[338184559,1726377048637,-1008.41,0.00013273,2]
[338184560,1726377048646,-500.0,0.00013273,2]
[338184561,1726377048655,-500.0,0.00013273,2]
[338184562,1726377048664,-500.0,0.00013273,2]
[338184563,1726377048673,-500.0,0.00013273,2]
[338184564,1726377048683,-500.0,0.00013273,2]
[338184565,1726377048692,-590.85,0.00013273,2]
[338184566,1726377048702,-594.3,0.00013273,2]
[338184567,1726377048711,-500.0,0.00013273,2]
[338184568,1726377048720,-261.83093822,0.00013273,2]
[338184569,1726377048729,-319.28143247,0.00013273,2]
[338184570,1726377048738,-500.0,0.00013273,2]
[338184571,1726377048749,-168.53546739,0.00013273,2]
[338184572,1726377048758,-500.0,0.00013273,2]
[338184573,1726377048768,-1773.6,0.00013273,2]
[338184574,1726377048777,-500.0,0.00013273,2]
[338184575,1726377048787,-829.57,0.00013273,2]
[338184576,1726377048796,-500.0,0.00013273,2]
[338184577,1726377048805,-500.0,0.00013273,2]
[338184578,1726377048814,-951.51,0.00013273,2]
[338184579,1726377048823,-500.0,0.00013273,2]
[338184580,1726377048832,-500.0,0.00013273,2]
[338184581,1726377048842,-500.0,0.00013273,2]
[338184582,1726377048851,-500.0,0.00013273,2]
[338184583,1726377048861,-1045.64,0.00013273,2]
[338184584,1726377048873,-1094.54,0.00013273,2]
[338184585,1726377048882,-500.0,0.00013273,2]
[338184586,1726377048891,-1306.2,0.00013273,2]
[338184587,1726377048900,-500.0,0.00013273,2]
[338184588,1726377048910,-500.0,0.00013273,2]
[338184589,1726377048919,-500.0,0.00013273,2]
[338184590,1726377048929,-962.09,0.00013273,2]
[338184591,1726377048939,-1672.85,0.00013273,2]
[338184592,1726377048948,-500.0,0.00013273,2]
[338184593,1726377048957,-696.58,0.00013273,2]
[338184594,1726377048967,-500.0,0.00013273,2]
[338184595,1726377048976,-535.47,0.00013273,2]
[338184596,1726377048986,-500.0,0.00013273,2]
[338184597,1726377048995,-611.83668042,0.00013273,2]
[338184598,1726377049009,-500.0,0.00013273,2]
[338184599,1726377049018,-619.52,0.00013273,2]
[338184600,1726377049027,-687.91,0.00013273,2]
[338184601,1726377049037,-1410.48,0.00013273,2]
[338184602,1726377049047,-500.0,0.00013273,2]
[338184603,1726377049056,-500.0,0.00013273,2]
[338184604,1726377049066,-500.0,0.00013273,2]
[338184605,1726377049075,-500.0,0.00013273,2]
[338184606,1726377049084,-1240.83,0.00013273,2]
[338184607,1726377049094,-500.0,0.00013273,2]
[338184608,1726377049104,-889.17,0.00013273,2]
[338184609,1726377049113,-500.0,0.00013273,2]
[338184610,1726377049123,-500.0,0.00013273,2]
[338184611,1726377049132,-587.17174522,0.00013273,2]
[338184612,1726377049142,-500.0,0.00013273,2]
[338184613,1726377049151,-2664.01,0.00013273,2]
[338184614,1726377049161,-500.0,0.00013273,2]
[338184615,1726377049171,-500.0,0.00013273,2]
[338184616,1726377049180,-500.0,0.00013273,2]
[338184617,1726377049190,-500.0,0.00013273,2]
[338184618,1726377049200,-553.59714674,0.00013273,2]
[338184619,1726377049210,-814.18,0.00013273,2]
[338184620,1726377049219,-500.0,0.00013273,2]
[338184621,1726377049229,-500.0,0.00013273,2]
[338184622,1726377049238,-500.0,0.00013273,2]
[338184623,1726377049248,-500.0,0.00013273,2]
[338184624,1726377049258,-500.0,0.00013273,2]
[338184625,1726377049267,-500.0,0.00013273,2]
[338184626,1726377049277,-702.59,0.00013273,2]
[338184627,1726377049287,-715.22,0.00013273,2]
[338184628,1726377049296,-500.0,0.00013273,2]
[338184629,1726377049305,-500.0,0.00013273,2]
[338184630,1726377049315,-500.0,0.00013273,2]
[338184631,1726377049324,-2735.93,0.00013273,2]
[338184632,1726377049334,-653.09,0.00013273,2]
[338184633,1726377049343,-500.0,0.00013273,2]
[338184634,1726377049352,-1236.06,0.00013273,2]
[338184635,1726377049361,-500.0,0.00013273,2]
[338184636,1726377049370,-1529.01,0.00013273,2]
[338184637,1726377049379,-500.0,0.00013273,2]
[338184638,1726377049389,-500.0,0.00013273,2]
[338184639,1726377049398,-1238.06,0.00013273,2]
[338184640,1726377049412,-500.0,0.00013273,2]
[338184641,1726377049421,-500.0,0.00013273,2]
[338184642,1726377049430,-500.0,0.00013273,2]
[338184643,1726377049439,-500.0,0.00013273,2]
[338184644,1726377049449,-500.0,0.00013273,2]
[338184645,1726377049458,-500.0,0.00013273,2]
[338184646,1726377049467,-799.43,0.00013273,2]
[338184647,1726377049477,-500.0,0.00013273,2]
[338184648,1726377049487,-2043.0,0.00013273,2]
[338184649,1726377049496,-500.0,0.00013273,2]
[338184650,1726377049506,-1626.46,0.00013273,2]
[338184651,1726377049515,-520.29,0.00013273,2]
[338184652,1726377049525,-500.0,0.00013273,2]
[338184653,1726377049538,-1363.92,0.00013273,2]
[338184654,1726377049548,-529.98,0.00013273,2]
[338184655,1726377049558,-500.0,0.00013273,2]
[338184656,1726377049567,-500.0,0.00013273,2]
[338184657,1726377049577,-500.0,0.00013273,2]
[338184658,1726377049586,-500.0,0.00013273,2]
[338184659,1726377049595,-500.0,0.00013273,2]
[338184660,1726377049605,-500.0,0.00013273,2]
[338184661,1726377049614,-500.0,0.00013273,2]
[338184662,1726377049624,-988.51,0.00013273,2]
[338184663,1726377049633,-500.0,0.00013273,2]
[338184664,1726377049642,-500.0,0.00013273,2]
[338184665,1726377049651,-1264.77,0.00013273,2]
[338184666,1726377049660,-1095.39,0.00013273,2]
[338184667,1726377049669,-1133.44,0.00013273,2]
[338184668,1726377049679,-500.0,0.00013273,2]
[338184669,1726377049689,-500.0,0.00013273,2]
[338184670,1726377049698,-309.39801182,0.00013273,2]
[338184671,1726377049707,-500.0,0.00013273,2]
[338184672,1726377049716,-500.0,0.00013273,2]
[338184673,1726377049725,-500.0,0.00013273,2]
[338184674,1726377049734,-500.0,0.00013273,2]
[338184675,1726377049744,-634.4,0.00013273,2]
[338184676,1726377049753,-500.0,0.00013273,2]
[338184677,1726377049762,-716.01,0.00013273,2]
[338184678,1726377049772,-500.0,0.00013273,2]
[338184679,1726377049781,-500.0,0.00013273,2]
[338184680,1726377049790,-500.0,0.00013273,2]
[338184681,1726377049799,-500.0,0.00013273,2]
[338184682,1726377049809,-500.0,0.00013273,2]
[338184683,1726377049818,-500.0,0.00013273,2]
[338184684,1726377049826,-500.0,0.00013273,2]
[338184685,1726377049835,-500.0,0.00013273,2]
[338184686,1726377049845,-756.21,0.00013273,2]
[338184687,1726377049854,-531.22,0.00013273,2]
[338184688,1726377049865,-500.0,0.00013273,2]
[338184689,1726377049875,-1214.28,0.00013273,2]
[338184690,1726377049884,-500.0,0.00013273,2]
[338184691,1726377049893,-500.0,0.00013273,2]
[338184692,1726377049904,-500.0,0.00013273,2]
[338184693,1726377049916,-500.0,0.00013273,2]
[338184694,1726377049925,-500.0,0.00013273,2]
[338184695,1726377050126,-500.0,0.00013273,2]
[338184696,1726377050135,-500.0,0.00013273,2]
[338184697,1726377050144,-500.0,0.00013273,2]
[338184698,1726377050153,-164.72,0.00013273,2]
[338184699,1726377050162,-2354.55,0.00013273,2]
[338184700,1726377050171,-500.0,0.00013273,2]
[338184701,1726377050180,-500.0,0.00013273,2]
[338184702,1726377050189,-500.0,0.00013273,2]
[338184703,1726377050198,-500.0,0.00013273,2]
[338184704,1726377050207,-1851.8,0.00013273,2]
[338184705,1726377050216,-500.0,0.00013273,2]
[338184706,1726377050225,-500.0,0.00013273,2]
[338184707,1726377050233,-500.0,0.00013273,2]
[338184708,1726377050242,-500.0,0.00013273,2]
[338184709,1726377050255,-500.0,0.00013273,2]
[338184710,1726377050264,-500.0,0.00013273,2]
[338184711,1726377050274,-708.42,0.00013273,2]
[338184712,1726377050282,-500.0,0.00013273,2]
[338184713,1726377050291,-500.0,0.00013273,2]
[338184714,1726377050300,-500.0,0.00013273,2]
[338184715,1726377050309,-2121.53,0.00013273,2]
[338184716,1726377050318,-2242.56,0.00013273,2]
[338184717,1726377050327,-596.37846962,0.00013273,2]
[338184718,1726377050336,-575.24,0.00013273,2]